bitfinex/quotes_ETHUSD_20230102
["timestamp","ask_amount","ask_price","bid_price","bid_amount"]
[1672675324293,4.30071696,1220.9,1220.8,33.53204681]
[1672675324505,4.30090055,1220.9,1220.8,33.53204681]
[1672675326147,9.30090055,1220.9,1220.8,33.53204681]
[1672675326373,9.29909385,1220.9,1220.8,33.53204681]
[1672675327297,5.0,1220.9,1220.8,33.53204681]
[1672675327525,9.2989115,1220.9,1220.8,33.53204681]
[1672675328371,9.2989115,1220.9,1220.8,33.52815325]
[1672675332329,5.0,1220.9,1220.8,33.52815325]
[1672675332589,10.06768077,1220.9,1220.8,4.80527211]
[1672675332802,11.18104885,1220.9,1220.8,1.70627211]
[1672675333948,10.06768077,1220.9,1220.8,1.70627211]
[1672675334151,10.06768077,1220.9,1220.8,1.48620199]
[1672675334367,11.07368077,1220.9,1220.8,9.67754199]
[1672675334537,11.07368077,1220.9,1220.8,9.77654199]
[1672675335080,11.07368077,1220.9,1220.8,17.96788199]
[1672675335940,11.07368077,1220.9,1220.8,9.77654199]
[1672675336561,11.07368077,1220.9,1220.8,1.58520199]
[1672675336755,11.07368077,1220.9,1220.8,1.48620199]
[1672675337925,11.07568077,1220.9,1220.8,1.48620199]
[1672675338143,11.07368077,1220.9,1220.8,1.48620199]
[1672675338977,8.64692322,1220.9,1220.8,1.48620199]
[1672675339206,13.72580079,1220.9,1220.8,1.48620199]
[1672675339418,13.72609826,1220.9,1220.8,1.48620199]
[1672675341161,11.08517504,1220.9,1220.8,1.48620199]
[1672675341375,11.08517504,1220.9,1220.8,9.67754199]
[1672675341585,11.08517504,1220.9,1220.8,9.77654199]
[1672675348316,11.08517504,1220.9,1220.8,9.77340486]
[1672675349494,11.08517504,1220.9,1220.8,17.96474486]
[1672675350498,11.08517504,1220.9,1220.8,9.77340486]
[1672675352119,12.08552144,1220.9,1220.8,1.58206486]
[1672675352343,22.38734,1220.9,1220.8,1.48306486]
[1672675352590,32.23916358,1220.9,1220.8,1.48306486]
[1672675353229,24.04849358,1220.9,1220.8,1.48306486]
[1672675353423,17.96897214,1220.9,1220.6,36.20223241]
[1672675353609,4.30195653,1220.7,1220.6,36.20223241]
[1672675353829,4.30195653,1220.7,1220.6,39.43223241]
[1672675355917,4.30195653,1220.7,1220.6,23.04740241]
[1672675356765,4.30195653,1220.7,1220.6,39.43278241]
[1672675357010,4.30222289,1220.7,1220.6,14.62499241]
[1672675357183,5.0,1220.7,1220.6,14.62499241]
[1672675357389,9.30221568,1220.7,1220.6,22.81768241]
[1672675357603,9.30221568,1220.7,1220.6,31.01037241]
[1672675360895,9.30221568,1220.7,1220.6,39.20306241]
[1672675364597,4.30221568,1220.7,1220.6,39.20306241]
[1672675365598,9.30221568,1220.7,1220.6,39.20306241]
[1672675370522,9.30221568,1220.7,1220.6,31.01037241]
[1672675371625,4.30221568,1220.7,1220.6,31.00755849]
[1672675372681,9.30221568,1220.7,1220.6,31.00755849]
[1672675378649,4.30221568,1220.7,1220.6,31.00755849]
[1672675379770,9.30221568,1220.7,1220.6,31.00755849]
[1672675385019,9.30221568,1220.7,1220.6,14.62217849]
[1672675385193,18.27370615,1220.7,1220.6,14.62217849]
[1672675385405,10.08168615,1220.7,1220.6,14.62217849]
[1672675385722,10.08168615,1220.7,1220.6,4.62499241]
[1672675385946,10.08168615,1220.7,1220.6,4.52599241]
[1672675386333,9.30318159,1220.7,1220.6,4.52599241]
[1672675386543,9.30318159,1220.7,1220.6,12.71868241]
[1672675386801,9.30318159,1220.7,1220.6,12.81768241]
[1672675386991,9.30318159,1220.7,1220.6,21.01037241]
[1672675389810,9.30318159,1220.7,1220.6,12.81768241]
[1672675390786,5.0,1220.7,1220.6,12.81768241]
[1672675391215,10.08168615,1220.7,1220.6,12.81768241]
[1672675391782,5.0,1220.7,1220.6,12.81768241]
[1672675391987,10.08168615,1220.7,1220.6,12.81768241]
[1672675393003,5.08168615,1220.7,1220.6,12.81768241]
[1672675393213,5.08168615,1220.7,1220.6,12.81529462]
[1672675393448,10.08168615,1220.7,1220.6,12.81529462]
[1672675394670,10.08168615,1220.7,1220.6,4.62260462]
[1672675394881,10.08168615,1220.7,1220.6,4.52360462]
[1672675396772,14.66292091,1220.7,1220.6,1.52360462]
[1672675396979,32.05040053,1220.7,1220.6,1.52360462]
[1672675397208,15.66636053,1220.7,1220.6,1.52360462]
[1672675398487,10.58123476,1220.7,1220.6,1.52360462]
[1672675398699,15.66522237,1220.7,1220.6,1.52360462]
[1672675399350,18.77325476,1220.7,1220.6,1.52360462]
[1672675399592,10.58123476,1220.7,1220.6,1.52360462]
[1672675399913,15.66382662,1220.7,1220.6,1.52360462]
[1672675400064,10.58123476,1220.7,1220.6,1.52360462]
[1672675400736,15.66374088,1220.7,1220.6,1.52360462]
[1672675406217,5.08250612,1220.7,1220.6,1.52360462]
[1672675406379,5.08250612,1220.7,1220.6,9.71629462]
[1672675406589,5.08250612,1220.7,1220.6,9.81529462]
[1672675407045,10.08250612,1220.7,1220.6,9.81529462]
[1672675407792,10.08250612,1220.7,1220.6,1.62260462]
[1672675407998,10.08250612,1220.7,1220.6,1.52360462]
[1672675408325,25.82349588,1220.7,1220.6,1.52360462]
[1672675408532,24.93300976,1220.7,1220.6,1.52360462]
[1672675409777,30.01260581,1220.7,1220.6,1.52360462]
[1672675410390,21.82058581,1220.7,1220.6,1.52360462]
[1672675410571,13.62856581,1220.7,1220.6,1.52360462]
[1672675413674,13.62856581,1220.7,1220.6,1.52006042]
[1672675415994,8.62856581,1220.7,1220.6,1.52006042]
[1672675416200,6.08559605,1220.7,1220.6,1.52006042]
[1672675417111,11.08559605,1220.7,1220.6,1.52006042]
[1672675422207,11.08702612,1220.7,1220.6,1.52006042]
[1672675423116,6.08702612,1220.7,1220.6,1.52006042]
[1672675424013,11.08702612,1220.7,1220.6,1.52006042]
[1672675426489,18.47978876,1220.7,1220.6,1.52006042]
[1672675426740,12.08552144,1220.7,1220.6,1.52006042]
[1672675426952,11.08728628,1220.7,1220.6,9.71275042]
[1672675427103,11.08728628,1220.7,1220.6,9.81175042]
[1672675428402,11.08728628,1220.7,1220.6,1.61906042]
[1672675428741,11.08728628,1220.7,1220.6,1.52006042]
[1672675429785,11.08728628,1220.7,1220.6,9.71275042]
[1672675430007,11.08728628,1220.7,1220.6,9.81175042]
[1672675430183,6.006,1220.7,1220.6,1.61906042]
[1672675430399,11.08957382,1220.7,1220.6,1.52006042]
[1672675431617,6.006,1220.7,1220.6,1.52006042]
[1672675431827,11.09029709,1220.7,1220.6,1.52006042]
[1672675433245,6.006,1220.7,1220.6,1.52006042]
[1672675433400,11.09027282,1220.7,1220.6,1.52006042]
[1672675433613,6.006,1220.7,1220.6,1.52006042]
[1672675434282,1.006,1220.7,1220.6,1.52006042]
[1672675434615,7.08552144,1220.7,1220.6,1.51707368]
[1672675435189,12.08552144,1220.7,1220.6,1.51707368]
[1672675436711,14.22081558,1220.7,1220.6,1.51707368]
[1672675436924,24.52533414,1220.7,1220.6,1.51707368]
[1672675437160,32.71735414,1220.7,1220.6,1.51707368]
[1672675437328,33.72735414,1220.7,1220.6,1.51707368]
[1672675438041,39.83007058,1220.7,1220.6,1.51707368]
[1672675438375,39.83006692,1220.7,1220.6,1.51707368]
[1672675438695,31.63804692,1220.7,1220.6,1.51707368]
[1672675438916,30.63204692,1220.7,1220.6,1.51707368]
[1672675439350,11.10271278,1220.7,1220.6,1.51707368]
[1672675446016,6.10271278,1220.7,1220.6,1.51707368]
[1672675447025,11.10271278,1220.7,1220.6,1.51707368]
[1672675449404,19.29473278,1220.7,1220.6,1.51707368]
[1672675450202,19.29673278,1220.7,1220.6,1.51707368]
[1672675450392,19.29473278,1220.7,1220.4,29.9395355]
[1672675450603,4.30466126,1220.5,1220.4,29.9395355]
[1672675450812,4.30466126,1220.5,1220.4,32.9395355]
[1672675451077,4.30466126,1220.5,1220.4,20.7457855]
[1672675451251,4.30466126,1220.5,1220.4,12.5520555]
[1672675451679,9.30466126,1220.5,1220.4,12.5520555]
[1672675452451,9.30466126,1220.5,1220.4,32.9401155]
[1672675452976,9.30466126,1220.5,1220.4,28.9401155]
[1672675457653,9.30466126,1220.5,1220.4,28.9372141]
[1672675460405,5.0,1220.5,1220.4,30.1772141]
[1672675462131,4.37066126,1220.6,1220.4,30.1772141]
[1672675462349,4.30466126,1220.6,1220.4,30.1772141]
[1672675463020,4.30466126,1220.5,1220.4,30.1772141]
[1672675464973,9.30466126,1220.5,1220.4,30.1772141]
[1672675469069,10.08488111,1220.5,1220.4,30.1772141]
[1672675469293,9.30421101,1220.5,1220.4,30.1772141]
[1672675474426,4.30421101,1220.5,1220.4,30.1772141]
[1672675475355,9.30421101,1220.5,1220.4,30.1772141]
[1672675476746,9.30421101,1220.5,1220.4,29.1672141]
[1672675477861,5.0,1220.5,1220.4,29.1672141]
[1672675478071,9.3049122,1220.5,1220.4,29.1672141]
[1672675478644,9.3049122,1220.5,1220.4,29.16396473]
[1672675481319,4.3049122,1220.5,1220.4,29.16396473]
[1672675482943,9.3049122,1220.5,1220.4,29.16396473]
[1672675484583,9.30192608,1220.5,1220.4,29.16396473]
[1672675488941,4.30192608,1220.5,1220.4,29.16396473]
[1672675489342,9.30192608,1220.5,1220.4,29.16396473]
[1672675495393,4.30192608,1220.5,1220.4,29.16396473]
[1672675496307,9.30192608,1220.5,1220.4,29.16396473]
[1672675497600,5.0,1220.5,1220.4,29.16396473]
[1672675497767,9.30507463,1220.5,1220.4,29.16396473]
[1672675499250,9.30491365,1220.5,1220.4,29.16396473]
[1672675499499,5.0,1220.5,1220.4,29.16396473]
[1672675499708,9.30496994,1220.5,1220.4,29.16396473]
[1672675501268,5.0,1220.5,1220.4,29.16396473]
[1672675501435,9.30596046,1220.5,1220.4,29.16396473]
[1672675502421,4.30596046,1220.5,1220.4,29.16396473]
[1672675503374,9.30596046,1220.5,1220.4,29.16396473]
[1672675506899,9.30596046,1220.5,1220.4,29.16045033]
[1672675509493,4.30596046,1220.5,1220.4,29.16045033]
[1672675510441,9.30596046,1220.5,1220.4,29.16045033]
[1672675510749,10.08488111,1220.5,1220.4,20.73642033]
[1672675511303,5.0,1220.5,1220.4,20.73642033]
[1672675511449,10.08488111,1220.5,1220.4,20.73642033]
[1672675511660,10.08488111,1220.5,1220.4,28.93045033]
[1672675511916,5.0,1220.5,1220.4,20.73642033]
[1672675512518,5.0,1220.5,1220.4,28.93045033]
[1672675513070,9.30707729,1220.5,1220.4,28.93045033]
[1672675513464,5.0,1220.5,1220.4,28.93045033]
[1672675514187,9.30711671,1220.5,1220.4,28.93045033]
[1672675514915,5.0,1220.5,1220.4,28.93045033]
[1672675515499,9.30707105,1220.5,1220.4,28.93045033]
[1672675515877,5.0,1220.5,1220.4,28.93045033]
[1672675517410,9.30702822,1220.5,1220.4,28.93045033]
[1672675518123,4.30702822,1220.5,1220.4,28.93045033]
[1672675518869,9.30702822,1220.5,1220.4,28.93045033]
[1672675520965,10.08488111,1220.5,1220.4,28.93045033]
[1672675521125,5.0,1220.5,1220.4,28.93045033]
[1672675521547,9.30708636,1220.5,1220.4,28.93045033]
[1672675522082,9.30908636,1220.5,1220.4,28.92745033]
[1672675522319,5.0,1220.5,1220.4,28.93045033]
[1672675522978,9.30699057,1220.5,1220.4,28.93045033]
[1672675524308,9.30704021,1220.5,1220.4,28.93045033]
[1672675524534,9.30690709,1220.5,1220.4,28.93045033]
[1672675524708,9.30690709,1220.5,1220.4,29.16045033]
[1672675525749,5.0,1220.5,1220.4,29.16045033]
[1672675527381,5.0,1220.5,1220.4,29.15823435]
[1672675529173,4.37290709,1220.6,1220.4,29.15823435]
[1672675529327,4.30690709,1220.6,1220.5,4.0]
[1672675529696,9.30690709,1220.6,1220.5,28.58008]
[1672675529865,9.30690709,1220.6,1220.5,28.67908]
[1672675532282,9.30690709,1220.6,1220.5,28.90908]
[1672675532954,9.30690709,1220.6,1220.5,24.90908]
[1672675535261,4.30690709,1220.6,1220.5,24.90908]
[1672675536350,9.30690709,1220.6,1220.5,24.90908]
[1672675542269,4.30690709,1220.6,1220.5,24.90908]
[1672675543384,9.30690709,1220.6,1220.5,24.90908]
[1672675548685,9.30292288,1220.6,1220.5,24.90908]
[1672675549401,4.30292288,1220.6,1220.5,24.90908]
[1672675549811,5.08488111,1220.6,1220.5,24.90908]
[1672675550337,5.0,1220.6,1220.5,24.90908]
[1672675551406,10.08488111,1220.6,1220.5,24.90908]
[1672675551614,9.30297331,1220.6,1220.5,24.90908]
[1672675551836,5.0,1220.6,1220.5,24.90552969]
[1672675552003,10.08488111,1220.6,1220.5,24.90552969]
[1672675552192,9.48488111,1220.6,1220.5,24.90552969]
[1672675554493,10.50271278,1220.6,1220.5,8.28880969]
[1672675554710,10.50271278,1220.6,1220.5,0.099]
[1672675554917,10.50271278,1220.6,1220.4,12.5521355]
[1672675555147,5.08412979,1220.5,1220.4,20.7458655]
[1672675555376,10.08412979,1220.5,1220.4,20.9758655]
[1672675556028,5.0,1220.5,1220.4,20.9758655]
[1672675556339,11.09412979,1220.5,1220.4,9.5521355]
[1672675556557,21.32108576,1220.5,1220.4,1.3584055]
[1672675556775,37.70780576,1220.5,1220.4,1.2594055]
[1672675557460,29.51444576,1220.5,1220.4,1.2594055]
[1672675558123,23.41173298,1220.5,1220.4,1.2594055]
[1672675558547,28.49222593,1220.5,1220.4,1.2594055]
[1672675558759,15.21837298,1220.5,1220.4,1.2594055]
[1672675558985,20.2987883,1220.5,1220.4,1.2594055]
[1672675559304,20.2988529,1220.5,1220.4,1.2594055]
[1672675559994,12.1054929,1220.5,1220.4,1.2594055]
[1672675563126,20.2988529,1220.5,1220.4,1.2594055]
[1672675563752,12.1054929,1220.5,1220.4,1.2594055]
[1672675564834,15.2988529,1220.5,1220.4,1.2594055]
[1672675565381,7.1054929,1220.5,1220.4,1.2594055]
[1672675565869,20.2988529,1220.5,1220.4,1.2594055]
[1672675566282,12.1054929,1220.5,1220.4,1.2594055]
[1672675570119,36.6855729,1220.5,1220.4,1.2594055]
[1672675571384,32.64107404,1220.5,1220.4,1.2594055]
[1672675572007,24.44771404,1220.5,1220.4,1.2594055]
[1672675574234,16.25435404,1220.5,1220.4,1.2594055]
[1672675575851,16.25435404,1220.5,1220.4,1.25595143]
[1672675579547,12.1054929,1220.5,1220.4,1.25595143]
[1672675579738,11.32056407,1220.5,1220.4,1.25595143]
[1672675579913,12.1054929,1220.5,1220.4,1.25595143]
[1672675581121,11.32100241,1220.5,1220.4,9.44998143]
[1672675581294,10.30598943,1220.5,1220.4,9.54898143]
[1672675581507,6.01,1220.5,1220.4,9.54898143]
[1672675582174,11.09047992,1220.5,1220.4,9.54898143]
[1672675582327,6.09047992,1220.5,1220.4,9.54898143]
[1672675583195,11.09047992,1220.5,1220.4,9.54898143]
[1672675583855,10.30696672,1220.5,1220.4,9.54898143]
[1672675584075,6.01,1220.5,1220.4,9.54898143]
[1672675584282,11.09047992,1220.5,1220.4,1.35495143]
[1672675584427,11.09047992,1220.5,1220.4,1.25595143]
[1672675589202,6.09047992,1220.5,1220.4,1.25595143]
[1672675590056,8.23628919,1220.5,1220.4,1.25595143]
[1672675590429,13.23628919,1220.5,1220.4,1.25595143]
[1672675592316,8.15580927,1220.5,1220.4,1.25595143]
[1672675592522,22.45188205,1220.5,1220.4,1.25595143]
[1672675592735,26.60074319,1220.5,1220.4,1.25595143]
[1672675592991,34.79410319,1220.5,1220.4,1.25595143]
[1672675593201,26.60074319,1220.5,1220.4,1.25595143]
[1672675593368,18.40738319,1220.5,1220.4,1.25595143]
[1672675594412,14.25852205,1220.5,1220.4,9.44998143]
[1672675594618,14.25852205,1220.5,1220.4,17.74301143]
[1672675594619,8.15580927,1220.5,1220.4,17.74301143]
[1672675595185,14.25852205,1220.5,1220.4,1.35495143]
[1672675595436,14.25852205,1220.5,1220.4,1.25595143]
[1672675597916,14.25852205,1220.5,1220.4,1.2529699]
[1672675598392,14.25852205,1220.5,1220.4,25.8350599]
[1672675598707,8.15580927,1220.5,1220.4,17.7400299]
[1672675599024,3.15580927,1220.5,1220.4,25.9340599]
[1672675599178,3.15580927,1220.5,1220.4,17.7400299]
[1672675599393,1.01,1220.5,1220.4,17.7400299]
[1672675599814,6.01,1220.5,1220.4,17.7400299]
[1672675600543,6.01,1220.5,1220.4,9.5459999]
[1672675600774,12.11271278,1220.5,1220.4,1.3519699]
[1672675601011,11.61271278,1220.5,1220.4,1.2529699]
[1672675601815,11.6097518,1220.5,1220.4,1.2529699]
[1672675606486,13.45082673,1220.5,1220.4,1.2529699]
[1672675609763,21.64418673,1220.5,1220.4,1.2529699]
[1672675610424,21.64418673,1220.5,1220.2,32.83654419]
[1672675610642,4.30599556,1220.3,1220.2,30.18554419]
[1672675610969,9.30599556,1220.3,1220.2,26.18554419]
[1672675612034,4.30599556,1220.3,1220.2,26.18554419]
[1672675612545,4.30618533,1220.3,1220.2,26.18554419]
[1672675613114,9.30618533,1220.3,1220.2,26.18554419]
[1672675613823,5.0,1220.3,1220.2,26.18554419]
[1672675614040,9.30622891,1220.3,1220.2,26.18554419]
[1672675615824,11.09645725,1220.3,1220.2,1.59990419]
[1672675616036,11.09645725,1220.3,1220.2,9.69627419]
[1672675616037,11.09723738,1220.3,1220.2,9.69627419]
[1672675616229,6.01,1220.3,1220.2,1.59990419]
[1672675616431,12.11271278,1220.3,1220.2,1.50090419]
[1672675616655,6.01,1220.3,1220.2,1.50090419]
[1672675616983,11.09723734,1220.3,1220.2,1.50090419]
[1672675617526,11.09723734,1220.3,1220.2,9.69627419]
[1672675617697,11.09723734,1220.3,1220.2,9.79527419]
[1672675618344,10.08723734,1220.3,1220.2,9.79527419]
[1672675619680,10.08723734,1220.3,1220.2,26.18601419]
[1672675619892,5.0,1220.3,1220.2,26.18601419]
[1672675620236,9.30387104,1220.3,1220.2,26.18601419]
[1672675620443,5.0,1220.3,1220.2,26.18601419]
[1672675620633,10.08723734,1220.3,1220.2,17.99064419]
[1672675621201,10.08723734,1220.3,1220.2,9.79527419]
[1672675622931,10.08723734,1220.3,1220.2,13.79291229]
[1672675623142,10.08723734,1220.3,1220.2,9.79291229]
[1672675623821,10.08723734,1220.3,1220.2,13.79291229]
[1672675624597,10.08723734,1220.3,1220.2,9.79291229]
[1672675626122,5.08723734,1220.3,1220.2,9.79291229]
[1672675626473,5.08723734,1220.3,1220.2,13.79291229]
[1672675626832,5.08723734,1220.3,1220.2,9.79291229]
[1672675627153,10.08723734,1220.3,1220.2,1.59754229]
[1672675627397,10.08723734,1220.3,1220.2,1.49854229]
[1672675629919,10.07929854,1220.3,1220.2,1.49854229]
[1672675630129,10.07946742,1220.3,1220.2,1.49854229]
[1672675630369,5.0,1220.3,1220.2,1.49854229]
[1672675630577,13.75544671,1220.3,1220.2,1.49854229]
[1672675630793,21.95014671,1220.3,1220.2,1.49854229]
[1672675630958,13.75544671,1220.3,1220.2,1.49854229]
[1672675632784,13.75510134,1220.3,1220.2,1.49854229]
[1672675636779,8.75510134,1220.3,1220.2,1.49854229]
[1672675637778,13.75510134,1220.3,1220.2,1.49854229]
[1672675640776,30.14450134,1220.3,1220.2,1.49854229]
[1672675640960,26.07156228,1220.3,1220.2,1.49854229]
[1672675641173,34.26626228,1220.3,1220.2,1.49854229]
[1672675642679,44.5178362,1220.3,1220.2,1.49854229]
[1672675643536,36.3231362,1220.3,1220.2,1.49854229]
[1672675643894,30.22042342,1220.3,1220.2,1.49854229]
[1672675644106,36.3231362,1220.3,1220.2,1.49854229]
[1672675644313,30.22042342,1220.3,1220.2,1.49854229]
[1672675644543,36.3231362,1220.3,1220.2,1.49854229]
[1672675644943,38.41512342,1220.3,1220.2,1.49854229]
[1672675645261,44.5178362,1220.3,1220.2,1.49565117]
[1672675645714,38.41512342,1220.3,1220.2,1.49565117]
[1672675646521,44.5178362,1220.3,1220.2,1.49565117]
[1672675648069,38.41512342,1220.3,1220.2,1.49565117]
[1672675648198,43.48752751,1220.3,1220.2,1.49565117]
[1672675648409,27.09811603,1220.3,1220.2,1.49565117]
[1672675648655,22.02572342,1220.3,1220.2,1.49565117]
[1672675649201,28.1284362,1220.3,1220.2,1.49565117]
[1672675649364,22.02572342,1220.3,1220.2,1.49565117]
[1672675649787,28.1284362,1220.3,1220.2,1.49565117]
[1672675650152,22.02572342,1220.3,1220.2,1.49565117]
[1672675651163,28.1284362,1220.3,1220.2,1.49565117]
[1672675651815,36.3231362,1220.3,1220.2,1.49565117]
[1672675652458,44.5178362,1220.3,1220.2,1.49565117]
[1672675655239,36.3231362,1220.3,1220.2,1.49565117]
[1672675664322,5.0,1220.3,1220.2,1.49565117]
[1672675664528,10.08080753,1220.3,1220.2,1.49565117]
[1672675667056,9.30210885,1220.3,1220.2,30.08176117]
[1672675667246,9.30210885,1220.3,1220.2,33.18076117]
[1672675670081,9.30210885,1220.3,1220.2,29.18076117]
[1672675670270,9.30210885,1220.3,1220.2,20.98215761]
[1672675674932,4.30210885,1220.3,1220.2,20.98215761]
[1672675675781,9.30210885,1220.3,1220.2,20.98215761]
[1672675676967,9.30210885,1220.3,1220.2,12.78678761]
[1672675677582,9.30210885,1220.3,1220.2,4.59141761]
[1672675677743,9.30210885,1220.3,1220.2,4.49241761]
[1672675678786,9.30210885,1220.3,1220.2,8.49241761]
[1672675678996,9.30210885,1220.3,1220.2,8.59141761]
[1672675679658,9.30210885,1220.3,1220.2,4.59141761]
[1672675679921,9.30210885,1220.3,1220.2,4.49241761]
[1672675680574,5.0,1220.3,1220.2,4.49241761]
[1672675680835,9.2982785,1220.3,1220.2,4.49241761]
[1672675680993,5.0,1220.3,1220.2,4.49241761]
[1672675681203,9.29847471,1220.3,1220.2,4.49241761]
[1672675687772,4.29847471,1220.3,1220.2,4.49241761]
[1672675688573,5.14680753,1220.4,1220.2,4.49241761]
[1672675688825,5.0,1220.3,1220.2,4.49241761]
[1672675689415,9.29803815,1220.3,1220.2,4.49241761]
[1672675689633,9.29803815,1220.3,1220.2,12.68778761]
[1672675689842,9.29803815,1220.3,1220.2,12.78678761]
[1672675691417,5.0,1220.3,1220.2,12.78678761]
[1672675691626,5.0,1220.3,1220.2,4.59141761]
[1672675691849,5.0,1220.3,1220.2,4.49241761]
[1672675692312,10.08080753,1220.3,1220.2,4.48853644]
[1672675693046,5.0,1220.3,1220.2,4.48853644]
[1672675693236,10.08080753,1220.3,1220.2,4.48853644]
[1672675694005,5.0,1220.3,1220.2,12.68390644]
[1672675694163,5.0,1220.3,1220.2,12.78290644]
[1672675694516,9.29982667,1220.3,1220.2,12.78290644]
[1672675694677,4.29982667,1220.3,1220.2,12.78290644]
[1672675695539,5.14680753,1220.4,1220.2,12.78290644]
[1672675695749,5.0,1220.3,1220.2,12.78290644]
[1672675696205,10.08080753,1220.3,1220.2,12.78290644]
[1672675697244,5.0,1220.3,1220.2,12.78290644]
[1672675697407,10.08080753,1220.3,1220.2,12.78290644]
[1672675701900,5.08080753,1220.3,1220.2,12.78290644]
[1672675703145,10.08080753,1220.3,1220.2,12.78290644]
[1672675709015,5.08080753,1220.3,1220.2,12.78290644]
[1672675709742,10.08080753,1220.3,1220.2,12.78290644]
[1672675713773,10.08080753,1220.3,1220.2,4.58753644]
[1672675713925,10.08080753,1220.3,1220.2,4.48471468]
[1672675715708,5.08080753,1220.3,1220.2,4.48471468]
[1672675715972,5.08804335,1220.3,1220.2,4.48471468]
[1672675716507,22.55708278,1220.4,1220.2,4.48471468]
[1672675716718,6.10271278,1220.3,1220.2,4.48471468]
[1672675716887,11.10271278,1220.3,1220.2,4.48471468]
[1672675717306,5.0,1220.3,1220.2,4.48471468]
[1672675718294,4.95,1220.3,1220.2,4.48471468]
[1672675719709,10.03774546,1220.3,1220.2,4.48471468]
[1672675722338,10.03546054,1220.3,1220.2,4.48471468]
[1672675722900,5.08774546,1220.3,1220.2,4.48471468]
[1672675723705,10.08774546,1220.3,1220.2,4.48471468]
[1672675729767,5.08774546,1220.3,1220.2,4.48471468]
[1672675730822,10.08774546,1220.3,1220.2,4.48471468]
[1672675733121,15.25157392,1220.3,1220.2,4.48471468]
[1672675734519,11.10271278,1220.3,1220.2,4.48471468]
[1672675734730,11.10271278,1220.3,1220.2,20.87545468]
[1672675734731,10.0875999,1220.3,1220.2,20.87545468]
[1672675734884,5.0,1220.3,1220.2,20.97445468]
[1672675735100,10.08755219,1220.3,1220.2,12.77908468]
[1672675735870,5.0,1220.3,1220.2,12.77908468]
[1672675736250,10.08687922,1220.3,1220.2,12.77908468]
[1672675736985,5.0,1220.3,1220.2,12.77908468]
[1672675737200,10.08727351,1220.3,1220.2,12.77908468]
[1672675738826,10.08727351,1220.3,1220.2,4.58371468]
[1672675739144,10.08727351,1220.3,1220.2,4.48471468]
[1672675741171,5.08727351,1220.3,1220.2,12.68008468]
[1672675741475,5.08727351,1220.3,1220.2,12.77908468]
[1672675742052,10.08727351,1220.3,1220.2,12.77908468]
[1672675742259,10.08727351,1220.3,1220.2,4.58371468]
[1672675742465,10.08727351,1220.3,1220.2,4.48471468]
[1672675743150,21.59665977,1220.3,1220.2,1.48471468]
[1672675743356,37.98605977,1220.3,1220.2,1.48471468]
[1672675743673,12.39995977,1220.3,1220.2,1.48471468]
[1672675743909,20.59465977,1220.3,1220.2,1.48471468]
[1672675744045,28.78935977,1220.3,1220.2,1.48471468]
[1672675744275,34.88938865,1220.3,1220.2,1.48471468]
[1672675746160,43.08408865,1220.3,1220.2,1.48471468]
[1672675747221,43.08408865,1220.3,1220.2,1.48200632]
[1672675748244,43.08183149,1220.3,1220.2,1.48200632]
[1672675754348,38.08183149,1220.3,1220.2,1.48200632]
[1672675755288,43.08183149,1220.3,1220.2,1.48200632]
[1672675757287,36.98405977,1220.3,1220.2,1.48200632]
[1672675758127,43.08183149,1220.3,1220.2,1.48200632]
[1672675763448,38.08183149,1220.3,1220.2,1.48200632]
[1672675763860,37.46633149,1220.3,1220.2,1.48200632]
[1672675764556,42.46633149,1220.3,1220.2,1.48200632]
[1672675764766,42.46833149,1220.3,1220.2,1.48200632]
[1672675765014,42.46633149,1220.3,1220.2,1.48200632]
[1672675765385,28.17385977,1220.3,1220.2,1.48200632]
[1672675765735,25.05837417,1220.3,1220.2,1.48200632]
[1672675768139,16.86367417,1220.3,1220.2,1.48200632]
[1672675768559,25.05837417,1220.3,1220.2,1.48200632]
[1672675769194,16.86367417,1220.3,1220.2,1.48200632]
[1672675770040,15.23807554,1220.3,1220.2,1.48200632]
[1672675770474,15.23807554,1220.3,1220.2,1.47819755]
[1672675777859,24.45133286,1220.3,1220.2,1.47819755]
[1672675779532,32.64603286,1220.3,1220.2,1.47819755]
[1672675779742,40.84073286,1220.3,1220.2,1.47819755]
[1672675780385,45.91337315,1220.3,1220.2,1.47819755]
[1672675783235,21.32927315,1220.3,1220.2,1.47819755]
[1672675783987,29.52397315,1220.3,1220.2,1.47819755]
[1672675784330,24.52397315,1220.3,1220.2,1.47819755]
[1672675785391,29.52397315,1220.3,1220.2,1.47819755]
[1672675785943,21.32927315,1220.3,1220.2,1.47819755]
[1672675786327,37.71867315,1220.3,1220.2,1.47819755]
[1672675791433,32.71867315,1220.3,1220.2,1.47819755]
[1672675791794,32.71867315,1220.3,1220.2,1.4753145]
[1672675792420,37.71867315,1220.3,1220.2,1.4753145]
[1672675793997,45.91337315,1220.3,1220.2,1.4753145]
[1672675795259,37.71867315,1220.3,1220.2,1.4753145]
[1672675795469,16.25663286,1220.3,1220.2,1.4753145]
[1672675796134,24.45133286,1220.3,1220.2,1.4753145]
[1672675796897,23.44133286,1220.3,1220.2,1.4753145]
[1672675797061,39.83073286,1220.3,1220.2,1.4753145]
[1672675797273,44.80237315,1220.3,1220.2,1.4753145]
[1672675798370,38.70460143,1220.3,1220.2,1.4753145]
[1672675802778,44.8054884,1220.3,1220.2,1.4753145]
[1672675803249,15.24974811,1220.3,1220.2,9.6706845]
[1672675803463,10.24974811,1220.3,1220.2,1.5743145]
[1672675803717,10.24974811,1220.3,1220.2,1.4753145]
[1672675804299,15.24974811,1220.3,1220.2,1.4753145]
[1672675807923,23.44444811,1220.3,1220.2,1.4753145]
[1672675808593,27.99688292,1220.3,1220.2,1.4753145]
[1672675810389,22.99688292,1220.3,1220.2,1.4753145]
[1672675811543,27.99688292,1220.3,1220.2,1.4753145]
[1672675812960,21.89599595,1220.3,1220.2,1.4753145]
[1672675813154,38.28539595,1220.3,1220.2,1.4753145]
[1672675814762,38.28539595,1220.3,1220.2,1.47298053]
[1672675817493,33.28539595,1220.3,1220.2,1.47298053]
[1672675818031,38.28539595,1220.3,1220.2,1.47298053]
[1672675821605,38.28739595,1220.3,1220.2,1.47298053]
[1672675821813,38.28539595,1220.3,1220.2,1.47298053]
[1672675824051,33.28539595,1220.3,1220.2,1.47298053]
[1672675824877,38.28539595,1220.3,1220.2,1.47298053]
[1672675830848,33.28539595,1220.3,1220.2,1.47298053]
[1672675831938,38.28539595,1220.3,1220.2,1.47298053]
[1672675833517,21.89599595,1220.3,1220.2,0.56004248]
[1672675835410,13.70129595,1220.3,1220.2,0.56004248]
[1672675835617,15.25300859,1220.3,1220.2,0.56004248]
[1672675835790,9.14886114,1220.3,1220.2,0.56004248]
[1672675836000,15.25316355,1220.3,1220.2,0.56004248]
[1672675836895,23.44786355,1220.3,1220.2,0.56004248]
[1672675837830,23.44786355,1220.3,1220.2,0.55640422]
[1672675838272,15.25316355,1220.3,1220.2,0.55640422]
[1672675838482,23.44786355,1220.3,1220.2,0.55640422]
[1672675842089,18.44520872,1220.3,1220.2,0.55640422]